[Event "Titled Tuesday Blitz March 08 Early 2022"]
[White "Sadhwani, Raunak"]
[Black "Erigaisi Arjun"]
[WhiteFideId "35093487"]
[BlackFideId "35009192"]
[WhiteElo "2616"]
[BlackElo "2745"]
[Result "1-0"]
[Round "10"]
[TimeControl "180+1"]
[Date "2022.03.08"]
[WhiteClock "0:00:06"]
[BlackClock "0:00:06"]

1. d4 {[%clk 0:03:00]}  e6 {[%clk 0:03:00]} 2. Nf3 {[%clk 0:03:00]}  c5 {[%clk 0:03:00]} 3. c3 {[%clk 0:02:52]}  Nf6 {[%clk 0:02:59]} 4. Bf4 {[%clk 0:02:52]}  Nc6 {[%clk 0:02:58]} 5. e3 {[%clk 0:02:53]}  d5 {[%clk 0:02:58]} 6. Nbd2 {[%clk 0:02:52]}  cxd4 {[%clk 0:02:57]} 7. exd4 {[%clk 0:02:53]}  Nh5 {[%clk 0:02:57]} 8. Be3 {[%clk 0:02:52]}  Bd6 {[%clk 0:02:57]} 9. Bd3 {[%clk 0:02:50]}  Nf4 {[%clk 0:02:56]} 10. Bxf4 {[%clk 0:02:50]}  Bxf4 {[%clk 0:02:57]} 11. g3 {[%clk 0:02:49]}  Bc7 {[%clk 0:02:57]} 12. O-O {[%clk 0:02:44]}  O-O {[%clk 0:02:58]} 13. Re1 {[%clk 0:02:42]}  f6 {[%clk 0:02:56]} 14. c4 {[%clk 0:02:43]}  Nb4 {[%clk 0:02:55]} 15. Bf1 {[%clk 0:02:42]}  dxc4 {[%clk 0:02:54]} 16. Bxc4 {[%clk 0:02:42]}  Nd5 {[%clk 0:02:53]} 17. Rc1 {[%clk 0:02:40]}  Rf7 {[%clk 0:02:49]} 18. Qb3 {[%clk 0:02:36]}  Ba5 {[%clk 0:02:47]} 19. Re2 {[%clk 0:02:31]}  Rc7 {[%clk 0:02:45]} 20. Ne4 {[%clk 0:02:22]}  b6 {[%clk 0:01:50]} 21. Nc3 {[%clk 0:01:46]}  Bxc3 {[%clk 0:01:40]} 22. bxc3 {[%clk 0:01:47]}  Qd6 {[%clk 0:01:14]} 23. Rce1 {[%clk 0:01:44]}  Qc6 {[%clk 0:01:14]} 24. Nd2 {[%clk 0:01:36]}  Kf7 {[%clk 0:01:01]} 25. a4 {[%clk 0:01:12]}  Bd7 {[%clk 0:00:58]} 26. f4 {[%clk 0:00:49]}  g6 {[%clk 0:00:53]} 27. Ne4 {[%clk 0:00:35]}  a6 {[%clk 0:00:40]} 28. Bxd5 {[%clk 0:00:22]}  exd5 {[%clk 0:00:40]} 29. Nf2 {[%clk 0:00:20]}  Re8 {[%clk 0:00:36]} 30. Qb4 {[%clk 0:00:15]}  Rxe2 {[%clk 0:00:30]} 31. Rxe2 {[%clk 0:00:16]}  Bf5 {[%clk 0:00:31]} 32. g4 {[%clk 0:00:15]}  a5 {[%clk 0:00:29]} 33. Qb3 {[%clk 0:00:14]}  Be6 {[%clk 0:00:29]} 34. Kg2 {[%clk 0:00:14]}  Kg7 {[%clk 0:00:23]} 35. h3 {[%clk 0:00:13]}  Bf7 {[%clk 0:00:22]} 36. h4 {[%clk 0:00:11]}  Qd6 {[%clk 0:00:21]} 37. Nd3 {[%clk 0:00:08]}  Be6 {[%clk 0:00:20]} 38. Kg3 {[%clk 0:00:08]}  g5 {[%clk 0:00:20]} 39. hxg5 {[%clk 0:00:08]}  fxg5 {[%clk 0:00:20]} 40. Re5 {[%clk 0:00:09]}  gxf4+ {[%clk 0:00:19]} 41. Nxf4 {[%clk 0:00:10]}  Bf7 {[%clk 0:00:19]} 42. Qc2 {[%clk 0:00:08]}  Qa3 {[%clk 0:00:16]} 43. Re3 {[%clk 0:00:08]}  Qa1 {[%clk 0:00:15]} 44. Qf2 {[%clk 0:00:07]}  Rxc3 {[%clk 0:00:14]} 45. Nd3 {[%clk 0:00:08]}  Qa3 {[%clk 0:00:12]} 46. Qf3 {[%clk 0:00:07]}  Qd6+ {[%clk 0:00:11]} 47. Ne5 {[%clk 0:00:07]}  Rxe3 {[%clk 0:00:12]} 48. Qxe3 {[%clk 0:00:08]}  Qf6 {[%clk 0:00:12]} 49. Qc3 {[%clk 0:00:07]}  h5 {[%clk 0:00:11]} 50. Qc7 {[%clk 0:00:05]}  hxg4 {[%clk 0:00:11]} 51. Kxg4 {[%clk 0:00:06]}  Qe6+ {[%clk 0:00:11]} 52. Kf4 {[%clk 0:00:06]}  Kf6 {[%clk 0:00:09]} 53. Qd8+ {[%clk 0:00:05]}  Kg7 {[%clk 0:00:09]} 54. Qg5+ {[%clk 0:00:06]}  Bg6 {[%clk 0:00:09]} 55. Qd8 {[%clk 0:00:04]}  Qf5+ {[%clk 0:00:06]} 56. Kg3 {[%clk 0:00:04]}  Bh5 {[%clk 0:00:07]} 57. Qxb6 {[%clk 0:00:03]}  Qg5+ {[%clk 0:00:06]} 58. Kh3 {[%clk 0:00:04]}  Bg6 {[%clk 0:00:05]} 59. Qxg6+ {[%clk 0:00:03]}  Qxg6 {[%clk 0:00:06]} 60. Nxg6 {[%clk 0:00:04]}  Kxg6 {[%clk 0:00:07]} 61. Kg4 {[%clk 0:00:05]}  Kf6 {[%clk 0:00:06]} 62. Kf4 {[%clk 0:00:06]} 1-0


[Site "https://www.chess.com"]

[Event "Titled Tuesday Blitz March 08 Early 2022"]
[White "Sailer, Mike"]
[Black "Matveeva, Olga"]
[WhiteFideId "2012901"]
[BlackFideId "24107018"]
[WhiteElo "2109"]
[BlackElo "2083"]
[Result "1-0"]
[Round "10"]
[TimeControl "180+1"]
[Date "2022.03.09"]
[WhiteClock "0:00:35"]
[BlackClock "0:00:34"]

1. d4 {[%clk 0:03:00]}  Nf6 {[%clk 0:02:59]} 2. Nf3 {[%clk 0:03:00]}  g6 {[%clk 0:02:58]} 3. Bf4 {[%clk 0:03:01]}  Bg7 {[%clk 0:02:57]} 4. e3 {[%clk 0:03:01]}  d6 {[%clk 0:02:58]} 5. Be2 {[%clk 0:03:02]}  O-O {[%clk 0:02:58]} 6. O-O {[%clk 0:03:02]}  Nh5 {[%clk 0:02:58]} 7. Bg5 {[%clk 0:03:03]}  h6 {[%clk 0:02:56]} 8. Bh4 {[%clk 0:03:03]}  Nd7 {[%clk 0:02:55]} 9. c4 {[%clk 0:03:03]}  c6 {[%clk 0:02:54]} 10. Nc3 {[%clk 0:03:03]}  Nhf6 {[%clk 0:02:53]} 11. Rc1 {[%clk 0:02:51]}  Kh7 {[%clk 0:02:52]} 12. b4 {[%clk 0:02:52]}  a5 {[%clk 0:02:49]} 13. b5 {[%clk 0:02:52]}  Qc7 {[%clk 0:02:47]} 14. a4 {[%clk 0:02:48]}  e5 {[%clk 0:02:43]} 15. Bg3 {[%clk 0:02:46]}  Re8 {[%clk 0:02:42]} 16. c5 {[%clk 0:02:41]}  Nh5 {[%clk 0:02:22]} 17. cxd6 {[%clk 0:02:30]}  Qxd6 {[%clk 0:02:21]} 18. Bxe5 {[%clk 0:02:23]}  Nxe5 {[%clk 0:02:14]} 19. Nxe5 {[%clk 0:02:22]}  Bxe5 {[%clk 0:02:11]} 20. dxe5 {[%clk 0:02:18]}  Qxe5 {[%clk 0:02:11]} 21. bxc6 {[%clk 0:02:14]}  bxc6 {[%clk 0:02:10]} 22. Bxh5 {[%clk 0:02:06]}  Qxh5 {[%clk 0:02:09]} 23. Qxh5 {[%clk 0:02:06]}  gxh5 {[%clk 0:02:09]} 24. Rfd1 {[%clk 0:02:03]}  Bg4 {[%clk 0:02:07]} 25. Rd6 {[%clk 0:02:03]}  Rac8 {[%clk 0:01:55]} 26. f3 {[%clk 0:02:02]}  Be6 {[%clk 0:01:53]} 27. Ne4 {[%clk 0:02:00]}  Bd5 {[%clk 0:01:48]} 28. Nf6+ {[%clk 0:02:00]}  Kg7 {[%clk 0:01:46]} 29. Nxe8+ {[%clk 0:01:49]}  Rxe8 {[%clk 0:01:47]} 30. e4 {[%clk 0:01:46]}  Bb3 {[%clk 0:01:45]} 31. Rcxc6 {[%clk 0:01:36]}  Bxa4 {[%clk 0:01:42]} 32. Ra6 {[%clk 0:01:36]}  Rc8 {[%clk 0:01:37]} 33. Rxa5 {[%clk 0:01:31]}  Rc1+ {[%clk 0:01:36]} 34. Kf2 {[%clk 0:01:31]}  Rc2+ {[%clk 0:01:36]} 35. Kg3 {[%clk 0:01:31]}  Bb3 {[%clk 0:01:34]} 36. Rxh5 {[%clk 0:01:17]}  Be6 {[%clk 0:01:32]} 37. Ra5 {[%clk 0:01:11]}  Rb2 {[%clk 0:01:30]} 38. Ra7 {[%clk 0:01:09]}  Kf6 {[%clk 0:01:29]} 39. h3 {[%clk 0:01:05]}  Rc2 {[%clk 0:01:28]} 40. f4 {[%clk 0:01:04]}  Rc3+ {[%clk 0:01:27]} 41. Kh2 {[%clk 0:01:04]}  h5 {[%clk 0:01:22]} 42. Rb6 {[%clk 0:00:59]}  Rb3 {[%clk 0:01:08]} 43. Rba6 {[%clk 0:00:50]}  Re3 {[%clk 0:00:46]} 44. f5 {[%clk 0:00:48]}  Rxe4 {[%clk 0:00:45]} 45. fxe6 {[%clk 0:00:48]}  fxe6 {[%clk 0:00:46]} 46. Rb7 {[%clk 0:00:46]}  h4 {[%clk 0:00:46]} 47. Rbb6 {[%clk 0:00:46]}  Kf5 {[%clk 0:00:44]} 48. Rb5+ {[%clk 0:00:43]}  e5 {[%clk 0:00:42]} 49. Rab6 {[%clk 0:00:40]}  Re2 {[%clk 0:00:40]} 50. Rb2 {[%clk 0:00:39]}  Re4 {[%clk 0:00:39]} 51. Rf2+ {[%clk 0:00:40]}  Kg5 {[%clk 0:00:39]} 52. Rb8 {[%clk 0:00:39]}  Re1 {[%clk 0:00:35]} 53. Rg8+ {[%clk 0:00:38]}  Kh6 {[%clk 0:00:35]} 54. Rg4 {[%clk 0:00:36]}  Kh5 {[%clk 0:00:34]} 55. Rf8 {[%clk 0:00:35]} 1-0


[Site "https://www.chess.com"]

[Event "Titled Tuesday Blitz March 08 Early 2022"]
[White "Samadov, Read"]
[Black "Seo, Jung Min"]
[WhiteFideId "13417444"]
[BlackFideId "1734687"]
[WhiteElo "2084"]
[BlackElo "2401"]
[Result "1-0"]
[Round "10"]
[TimeControl "180+1"]
[Date "2022.03.08"]
[WhiteClock "0:00:36"]
[BlackClock "0:01:06"]

1. d4 {[%clk 0:03:00]}  Nf6 {[%clk 0:02:59]} 2. c4 {[%clk 0:03:01]}  e6 {[%clk 0:02:59]} 3. Nf3 {[%clk 0:03:02]}  d5 {[%clk 0:02:59]} 4. g3 {[%clk 0:03:02]}  Be7 {[%clk 0:02:58]} 5. Bg2 {[%clk 0:03:02]}  O-O {[%clk 0:02:59]} 6. O-O {[%clk 0:03:02]}  dxc4 {[%clk 0:02:59]} 7. Qc2 {[%clk 0:03:03]}  a6 {[%clk 0:02:58]} 8. a4 {[%clk 0:03:03]}  Bd7 {[%clk 0:02:58]} 9. Qxc4 {[%clk 0:03:04]}  Bc6 {[%clk 0:02:58]} 10. Bg5 {[%clk 0:03:04]}  Nbd7 {[%clk 0:02:58]} 11. Nc3 {[%clk 0:03:04]}  h6 {[%clk 0:02:56]} 12. Bxf6 {[%clk 0:03:04]}  Nxf6 {[%clk 0:02:57]} 13. Rfd1 {[%clk 0:03:04]}  a5 {[%clk 0:02:55]} 14. Rac1 {[%clk 0:03:02]}  Re8 {[%clk 0:02:52]} 15. Qd3 {[%clk 0:02:58]}  Bxf3 {[%clk 0:02:52]} 16. Bxf3 {[%clk 0:02:57]}  c6 {[%clk 0:02:52]} 17. h4 {[%clk 0:02:58]}  Qb6 {[%clk 0:02:52]} 18. Qc2 {[%clk 0:02:53]}  Rad8 {[%clk 0:02:52]} 19. e3 {[%clk 0:02:52]}  Nd5 {[%clk 0:02:52]} 20. h5 {[%clk 0:02:51]}  Bd6 {[%clk 0:02:44]} 21. Qe2 {[%clk 0:02:46]}  Qb4 {[%clk 0:02:41]} 22. Be4 {[%clk 0:02:42]}  Nxc3 {[%clk 0:02:36]} 23. bxc3 {[%clk 0:02:42]}  Qxa4 {[%clk 0:02:36]} 24. Rb1 {[%clk 0:02:31]}  Qa3 {[%clk 0:02:16]} 25. Bc2 {[%clk 0:02:17]}  Bf8 {[%clk 0:02:11]} 26. Qd3 {[%clk 0:02:17]}  f5 {[%clk 0:02:10]} 27. Rxb7 {[%clk 0:02:17]}  c5 {[%clk 0:02:09]} 28. Bb3 {[%clk 0:01:57]}  a4 {[%clk 0:02:00]} 29. Qa6 {[%clk 0:01:42]}  cxd4 {[%clk 0:01:45]} 30. Bxe6+ {[%clk 0:01:39]}  Kh8 {[%clk 0:01:44]} 31. Rxd4 {[%clk 0:00:48]}  Qxc3 {[%clk 0:01:19]} 32. Bxf5 {[%clk 0:00:39]}  Rxd4 {[%clk 0:01:09]} 33. Qg6 {[%clk 0:00:38]}  Qc1+ {[%clk 0:01:06]} 34. Kg2 {[%clk 0:00:36]} 1-0


[Site "https://www.chess.com"]

[Event "Titled Tuesday Blitz March 08 Early 2022"]
[White "Samant Aditya S"]
[Black "Soderstrom, Adrian"]
[WhiteFideId "35080580"]
[BlackFideId "1745786"]
[WhiteElo "1916"]
[BlackElo "2107"]
[Result "0-1"]
[Round "10"]
[TimeControl "180+1"]
[Date "2022.03.09"]
[WhiteClock "0:00:04"]
[BlackClock "0:01:07"]

1. d4 {[%clk 0:03:00]}  Nf6 {[%clk 0:02:59]} 2. c4 {[%clk 0:03:01]}  e5 {[%clk 0:03:00]} 3. dxe5 {[%clk 0:02:59]}  Ng4 {[%clk 0:03:00]} 4. Nc3 {[%clk 0:02:52]}  Nxe5 {[%clk 0:02:59]} 5. e4 {[%clk 0:02:47]}  Bb4 {[%clk 0:02:52]} 6. f4 {[%clk 0:02:21]}  Nec6 {[%clk 0:02:52]} 7. Nf3 {[%clk 0:02:21]}  d6 {[%clk 0:02:50]} 8. Bd3 {[%clk 0:02:20]}  Bg4 {[%clk 0:02:46]} 9. Be3 {[%clk 0:02:15]}  Nd7 {[%clk 0:02:43]} 10. O-O {[%clk 0:02:14]}  Bc5 {[%clk 0:02:35]} 11. Qd2 {[%clk 0:01:59]}  O-O {[%clk 0:02:23]} 12. Nd5 {[%clk 0:01:57]}  Re8 {[%clk 0:02:18]} 13. h3 {[%clk 0:01:46]}  Bxf3 {[%clk 0:02:17]} 14. Rxf3 {[%clk 0:01:47]}  Bxe3+ {[%clk 0:02:08]} 15. Rxe3 {[%clk 0:01:47]}  Nc5 {[%clk 0:02:08]} 16. Bc2 {[%clk 0:01:47]}  Ne7 {[%clk 0:01:59]} 17. b4 {[%clk 0:01:17]}  Nd7 {[%clk 0:01:54]} 18. Rae1 {[%clk 0:00:54]}  a5 {[%clk 0:01:46]} 19. e5 {[%clk 0:00:42]}  dxe5 {[%clk 0:01:39]} 20. fxe5 {[%clk 0:00:43]}  Nf8 {[%clk 0:01:39]} 21. Rg3 {[%clk 0:00:24]}  axb4 {[%clk 0:01:37]} 22. Nf6+ {[%clk 0:00:18]}  Kh8 {[%clk 0:01:38]} 23. Qf2 {[%clk 0:00:19]}  Rxa2 {[%clk 0:01:28]} 24. Nxe8 {[%clk 0:00:15]}  Qxe8 {[%clk 0:01:29]} 25. Qd2 {[%clk 0:00:13]}  Ne6 {[%clk 0:01:21]} 26. Qd3 {[%clk 0:00:11]}  Ng6 {[%clk 0:01:18]} 27. Qb3 {[%clk 0:00:10]}  Ra3 {[%clk 0:01:18]} 28. Qxb4 {[%clk 0:00:04]}  Rxg3 {[%clk 0:01:18]} 29. Qxb7 {[%clk 0:00:04]}  Nef4 {[%clk 0:01:15]} 30. Be4 {[%clk 0:00:04]}  h5 {[%clk 0:01:09]} 31. Kh2 {[%clk 0:00:04]}  Rg5 {[%clk 0:01:08]} 32. Ra1 {[%clk 0:00:04]}  Qxe5 {[%clk 0:01:07]} 33. Ra8+ {[%clk 0:00:04]}  Kh7 {[%clk 0:01:07]} 34. Bxg6+ {[%clk 0:00:04]}  Nxg6+ {[%clk 0:01:07]} 0-1


[Site "https://www.chess.com"]

[Event "Titled Tuesday Blitz March 08 Early 2022"]
[White "Sarkar, Justin"]
[Black "Hryshchenko, Kamila"]
[WhiteFideId "2010011"]
[BlackFideId "14147491"]
[WhiteElo "2038"]
[BlackElo "1929"]
[Result "0-1"]
[Round "10"]
[TimeControl "180+1"]
[Date "2022.03.09"]
[WhiteClock "0:00:01"]
[BlackClock "0:00:51"]

1. d4 {[%clk 0:02:53]}  d6 {[%clk 0:02:13]} 2. c4 {[%clk 0:02:45]}  Nf6 {[%clk 0:02:12]} 3. Nf3 {[%clk 0:02:39]}  g6 {[%clk 0:02:12]} 4. g3 {[%clk 0:02:32]}  Bg7 {[%clk 0:02:12]} 5. Bg2 {[%clk 0:02:31]}  O-O {[%clk 0:02:12]} 6. O-O {[%clk 0:02:31]}  c6 {[%clk 0:02:12]} 7. Nc3 {[%clk 0:02:28]}  Nbd7 {[%clk 0:02:12]} 8. e4 {[%clk 0:02:26]}  e5 {[%clk 0:02:11]} 9. Qc2 {[%clk 0:02:13]}  Qe7 {[%clk 0:02:06]} 10. Rd1 {[%clk 0:02:07]}  a5 {[%clk 0:02:04]} 11. b3 {[%clk 0:01:57]}  exd4 {[%clk 0:02:02]} 12. Nxd4 {[%clk 0:01:56]}  Nc5 {[%clk 0:02:01]} 13. Bb2 {[%clk 0:01:39]}  Re8 {[%clk 0:02:00]} 14. f3 {[%clk 0:01:16]}  h6 {[%clk 0:01:59]} 15. Nde2 {[%clk 0:01:08]}  Be6 {[%clk 0:01:44]} 16. Rd2 {[%clk 0:01:03]}  a4 {[%clk 0:01:44]} 17. Rad1 {[%clk 0:00:57]}  axb3 {[%clk 0:01:43]} 18. axb3 {[%clk 0:00:58]}  b5 {[%clk 0:01:27]} 19. Rxd6 {[%clk 0:00:29]}  bxc4 {[%clk 0:01:25]} 20. bxc4 {[%clk 0:00:26]}  Bxc4 {[%clk 0:01:22]} 21. Nc1 {[%clk 0:00:14]}  Qb7 {[%clk 0:01:14]} 22. f4 {[%clk 0:00:08]}  Ng4 {[%clk 0:01:02]} 23. Qd2 {[%clk 0:00:03]}  Qb6 {[%clk 0:00:53]} 24. Kh1 {[%clk 0:00:01]}  Nb3 {[%clk 0:00:51]} 0-1


[Site "https://www.chess.com"]

[Event "Titled Tuesday Blitz March 08 Early 2022"]
[White "Shkapenko, Pavel"]
[Black "Vasquez Schroeder, Rodrigo"]
[WhiteFideId "4151933"]
[BlackFideId "3400042"]
[WhiteElo "2386"]
[BlackElo "2561"]
[Result "1-0"]
[Round "10"]
[TimeControl "180+1"]
[Date "2022.03.08"]
[WhiteClock "0:00:21"]
[BlackClock "0:00:50"]

1. e4 {[%clk 0:02:58]}  c5 {[%clk 0:02:59]} 2. c3 {[%clk 0:02:57]}  Nf6 {[%clk 0:02:58]} 3. e5 {[%clk 0:02:56]}  Nd5 {[%clk 0:02:59]} 4. d4 {[%clk 0:02:57]}  cxd4 {[%clk 0:02:59]} 5. cxd4 {[%clk 0:02:56]}  d6 {[%clk 0:02:58]} 6. Nf3 {[%clk 0:02:56]}  Nc6 {[%clk 0:02:57]} 7. Bc4 {[%clk 0:02:55]}  dxe5 {[%clk 0:02:57]} 8. Nxe5 {[%clk 0:02:55]}  e6 {[%clk 0:02:53]} 9. O-O {[%clk 0:02:54]}  Be7 {[%clk 0:02:52]} 10. Nf3 {[%clk 0:02:53]}  O-O {[%clk 0:02:51]} 11. Nc3 {[%clk 0:02:54]}  b6 {[%clk 0:02:46]} 12. Nxd5 {[%clk 0:02:53]}  exd5 {[%clk 0:02:46]} 13. Bb5 {[%clk 0:02:54]}  Bb7 {[%clk 0:02:45]} 14. Bf4 {[%clk 0:02:52]}  Rc8 {[%clk 0:02:42]} 15. Rc1 {[%clk 0:02:51]}  a6 {[%clk 0:02:39]} 16. Bd3 {[%clk 0:02:42]}  Bf6 {[%clk 0:02:36]} 17. Bf5 {[%clk 0:02:38]}  Ra8 {[%clk 0:02:33]} 18. Re1 {[%clk 0:02:26]}  g6 {[%clk 0:02:31]} 19. Bb1 {[%clk 0:02:24]}  Re8 {[%clk 0:02:31]} 20. Qd2 {[%clk 0:02:22]}  Rc8 {[%clk 0:02:28]} 21. Ne5 {[%clk 0:02:15]}  Nxe5 {[%clk 0:02:21]} 22. dxe5 {[%clk 0:02:13]}  Bg7 {[%clk 0:02:21]} 23. Rxc8 {[%clk 0:02:09]}  Qxc8 {[%clk 0:02:20]} 24. a3 {[%clk 0:02:08]}  Qd7 {[%clk 0:02:19]} 25. Ba2 {[%clk 0:02:06]}  d4 {[%clk 0:02:15]} 26. Rd1 {[%clk 0:02:01]}  Bxe5 {[%clk 0:02:13]} 27. Bxe5 {[%clk 0:01:59]}  Rxe5 {[%clk 0:02:14]} 28. h3 {[%clk 0:01:56]}  Qd6 {[%clk 0:02:10]} 29. Qd3 {[%clk 0:01:45]}  Re7 {[%clk 0:02:07]} 30. h4 {[%clk 0:01:30]}  h5 {[%clk 0:02:04]} 31. a4 {[%clk 0:01:18]}  a5 {[%clk 0:02:00]} 32. Bc4 {[%clk 0:01:15]}  Qc6 {[%clk 0:01:51]} 33. f3 {[%clk 0:01:06]}  Qxa4 {[%clk 0:01:42]} 34. Qxd4 {[%clk 0:01:01]}  Qb4 {[%clk 0:01:36]} 35. Qf6 {[%clk 0:00:46]}  Qc5+ {[%clk 0:01:12]} 36. Kh1 {[%clk 0:00:42]}  Qc7 {[%clk 0:01:07]} 37. Qxg6+ {[%clk 0:00:39]}  Kf8 {[%clk 0:01:07]} 38. Qh6+ {[%clk 0:00:36]}  Kg8 {[%clk 0:01:07]} 39. Qg5+ {[%clk 0:00:34]}  Kf8 {[%clk 0:01:07]} 40. Qxh5 {[%clk 0:00:33]}  Re5 {[%clk 0:01:03]} 41. Qh8+ {[%clk 0:00:28]}  Ke7 {[%clk 0:01:03]} 42. Bxf7 {[%clk 0:00:28]}  Rf5 {[%clk 0:00:54]} 43. Bg6 {[%clk 0:00:24]}  Qe5 {[%clk 0:00:50]} 44. Qh7+ {[%clk 0:00:23]}  Kf6 {[%clk 0:00:50]} 45. Qf7# {[%clk 0:00:21]} 1-0


[Site "https://www.chess.com"]

[Event "Titled Tuesday Blitz March 08 Early 2022"]
[White "Shuvalova, Polina"]
[Black "Hoffmann, Asa"]
[WhiteFideId "24171760"]
[BlackFideId "2001470"]
[WhiteElo "2355"]
[BlackElo "2117"]
[Result "1-0"]
[Round "10"]
[TimeControl "180+1"]
[Date "2022.03.09"]
[WhiteClock "0:00:06"]
[BlackClock "0:00:09"]

1. d4 {[%clk 0:03:00]}  Nf6 {[%clk 0:02:53]} 2. Nf3 {[%clk 0:02:59]}  d6 {[%clk 0:02:51]} 3. c4 {[%clk 0:02:59]}  Bf5 {[%clk 0:02:48]} 4. Nc3 {[%clk 0:02:58]}  Nbd7 {[%clk 0:02:47]} 5. h3 {[%clk 0:02:55]}  h6 {[%clk 0:02:47]} 6. g4 {[%clk 0:02:49]}  Bh7 {[%clk 0:02:46]} 7. Bg2 {[%clk 0:02:50]}  c6 {[%clk 0:02:46]} 8. Bf4 {[%clk 0:02:46]}  Qa5 {[%clk 0:02:39]} 9. Qd2 {[%clk 0:02:45]}  e5 {[%clk 0:02:39]} 10. Bg3 {[%clk 0:02:24]}  Be7 {[%clk 0:02:38]} 11. O-O {[%clk 0:02:17]}  Rd8 {[%clk 0:02:24]} 12. a3 {[%clk 0:02:09]}  Qc7 {[%clk 0:02:14]} 13. b4 {[%clk 0:02:06]}  O-O {[%clk 0:02:09]} 14. Qe3 {[%clk 0:02:02]}  Rfe8 {[%clk 0:02:07]} 15. dxe5 {[%clk 0:02:00]}  dxe5 {[%clk 0:02:06]} 16. Rfd1 {[%clk 0:01:56]}  Nb6 {[%clk 0:02:01]} 17. Bxe5 {[%clk 0:01:53]}  Qc8 {[%clk 0:01:54]} 18. Rxd8 {[%clk 0:01:47]}  Bxd8 {[%clk 0:01:47]} 19. Qf4 {[%clk 0:01:43]}  Qe6 {[%clk 0:01:35]} 20. c5 {[%clk 0:01:33]}  Nbd5 {[%clk 0:01:25]} 21. Nxd5 {[%clk 0:01:32]}  Nxd5 {[%clk 0:01:25]} 22. Qd4 {[%clk 0:01:33]}  Bf6 {[%clk 0:01:18]} 23. Bxf6 {[%clk 0:01:31]}  Nxf6 {[%clk 0:01:17]} 24. e3 {[%clk 0:01:26]}  Qb3 {[%clk 0:01:05]} 25. Nd2 {[%clk 0:01:08]}  Qc2 {[%clk 0:01:03]} 26. a4 {[%clk 0:00:56]}  a6 {[%clk 0:00:50]} 27. Bf1 {[%clk 0:00:48]}  Be4 {[%clk 0:00:45]} 28. Re1 {[%clk 0:00:42]}  Qxa4 {[%clk 0:00:37]} 29. Nxe4 {[%clk 0:00:40]}  Rxe4 {[%clk 0:00:35]} 30. Qd8+ {[%clk 0:00:39]}  Re8 {[%clk 0:00:34]} 31. Qb6 {[%clk 0:00:38]}  Qc2 {[%clk 0:00:30]} 32. Qxb7 {[%clk 0:00:35]}  Ne4 {[%clk 0:00:26]} 33. Re2 {[%clk 0:00:35]}  Qd1 {[%clk 0:00:25]} 34. Qxc6 {[%clk 0:00:33]}  Re6 {[%clk 0:00:25]} 35. Qc8+ {[%clk 0:00:29]}  Kh7 {[%clk 0:00:25]} 36. Qf8 {[%clk 0:00:18]}  Ng5 {[%clk 0:00:22]} 37. f4 {[%clk 0:00:12]}  Nxh3+ {[%clk 0:00:17]} 38. Kg2 {[%clk 0:00:11]}  Nxf4+ {[%clk 0:00:16]} 39. exf4 {[%clk 0:00:09]}  Rxe2+ {[%clk 0:00:16]} 40. Bxe2 {[%clk 0:00:10]}  Qxe2+ {[%clk 0:00:15]} 41. Kg3 {[%clk 0:00:10]}  Qe3+ {[%clk 0:00:15]} 42. Kg2 {[%clk 0:00:09]}  Qxf4 {[%clk 0:00:15]} 43. Qd6 {[%clk 0:00:06]}  Qxg4+ {[%clk 0:00:14]} 44. Kf2 {[%clk 0:00:06]}  Qxb4 {[%clk 0:00:14]} 45. Qd3+ {[%clk 0:00:04]}  g6 {[%clk 0:00:13]} 46. Qd5 {[%clk 0:00:04]}  Kg7 {[%clk 0:00:13]} 47. c6 {[%clk 0:00:04]}  Qc3 {[%clk 0:00:13]} 48. Qd7 {[%clk 0:00:03]}  Qc2+ {[%clk 0:00:11]} 49. Ke3 {[%clk 0:00:03]}  Qc3+ {[%clk 0:00:10]} 50. Ke4 {[%clk 0:00:04]}  Qc4+ {[%clk 0:00:10]} 51. Qd4+ {[%clk 0:00:04]}  Qxd4+ {[%clk 0:00:09]} 52. Kxd4 {[%clk 0:00:05]}  Kf6 {[%clk 0:00:09]} 53. c7 {[%clk 0:00:06]} 1-0


[Site "https://www.chess.com"]

[Event "Titled Tuesday Blitz March 08 Early 2022"]
[White "Shyaamnikhil P"]
[Black "Bethke, Richard"]
[WhiteFideId "5024218"]
[BlackFideId "12959243"]
[WhiteElo "2329"]
[BlackElo "2552"]
[Result "1-0"]
[Round "10"]
[TimeControl "180+1"]
[Date "2022.03.08"]
[WhiteClock "0:02:10"]
[BlackClock "0:00:34"]

1. e4 {[%clk 0:03:00]}  c5 {[%clk 0:03:00]} 2. Nc3 {[%clk 0:02:59]}  Nc6 {[%clk 0:02:59]} 3. f4 {[%clk 0:02:57]}  g6 {[%clk 0:02:59]} 4. Nf3 {[%clk 0:02:56]}  Bg7 {[%clk 0:02:59]} 5. Bb5 {[%clk 0:02:55]}  Nd4 {[%clk 0:02:59]} 6. O-O {[%clk 0:02:54]}  a6 {[%clk 0:02:57]} 7. Bd3 {[%clk 0:02:53]}  e6 {[%clk 0:02:56]} 8. e5 {[%clk 0:02:52]}  d5 {[%clk 0:02:51]} 9. Nxd4 {[%clk 0:02:51]}  cxd4 {[%clk 0:02:51]} 10. Ne2 {[%clk 0:02:51]}  Ne7 {[%clk 0:02:48]} 11. Kh1 {[%clk 0:02:42]}  Nc6 {[%clk 0:02:47]} 12. a3 {[%clk 0:02:41]}  f6 {[%clk 0:02:36]} 13. b4 {[%clk 0:02:35]}  fxe5 {[%clk 0:02:29]} 14. fxe5 {[%clk 0:02:36]}  Nxe5 {[%clk 0:02:29]} 15. Bb2 {[%clk 0:02:31]}  Nxd3 {[%clk 0:02:28]} 16. cxd3 {[%clk 0:02:29]}  e5 {[%clk 0:02:27]} 17. Qe1 {[%clk 0:02:29]}  Bf5 {[%clk 0:02:24]} 18. Nxd4 {[%clk 0:02:28]}  O-O {[%clk 0:02:07]} 19. Nxf5 {[%clk 0:02:27]}  Rxf5 {[%clk 0:01:57]} 20. Rxf5 {[%clk 0:02:26]}  gxf5 {[%clk 0:01:58]} 21. Bxe5 {[%clk 0:02:26]}  Qd7 {[%clk 0:01:37]} 22. d4 {[%clk 0:02:23]}  Re8 {[%clk 0:01:36]} 23. Qg3 {[%clk 0:02:22]}  Kh8 {[%clk 0:01:33]} 24. Rf1 {[%clk 0:02:20]}  Rg8 {[%clk 0:01:05]} 25. h3 {[%clk 0:02:17]}  h6 {[%clk 0:01:01]} 26. Qg6 {[%clk 0:02:16]}  Rf8 {[%clk 0:00:53]} 27. Qxh6+ {[%clk 0:02:15]}  Kg8 {[%clk 0:00:53]} 28. Qg5 {[%clk 0:02:14]}  Kh7 {[%clk 0:00:45]} 29. Rf4 {[%clk 0:02:11]}  Bh6 {[%clk 0:00:34]} 30. Rh4 {[%clk 0:02:10]} 1-0


[Site "https://www.chess.com"]

[Event "Titled Tuesday Blitz March 08 Early 2022"]
[White "Sinitsina, Anastassia"]
[Black "Zaksaite, Salomeja"]
[WhiteFideId "4504640"]
[BlackFideId "12801496"]
[WhiteElo "2144"]
[BlackElo "1953"]
[Result "1-0"]
[Round "10"]
[TimeControl "180+1"]
[Date "2022.03.09"]
[WhiteClock "0:02:41"]
[BlackClock "0:01:45"]

1. Nf3 {[%clk 0:03:00]}  Nf6 {[%clk 0:02:55]} 2. g3 {[%clk 0:03:01]}  g6 {[%clk 0:02:54]} 3. Bg2 {[%clk 0:03:01]}  Bg7 {[%clk 0:02:55]} 4. O-O {[%clk 0:03:02]}  d5 {[%clk 0:02:54]} 5. d4 {[%clk 0:03:02]}  O-O {[%clk 0:02:54]} 6. c4 {[%clk 0:03:02]}  dxc4 {[%clk 0:02:54]} 7. Qc2 {[%clk 0:03:02]}  Nc6 {[%clk 0:02:27]} 8. Rd1 {[%clk 0:02:48]}  h6 {[%clk 0:02:09]} 9. Qxc4 {[%clk 0:02:47]}  Be6 {[%clk 0:02:09]} 10. Qc2 {[%clk 0:02:46]}  Nb4 {[%clk 0:02:08]} 11. Qa4 {[%clk 0:02:44]}  a6 {[%clk 0:01:45]} 12. Qxb4 {[%clk 0:02:41]} 1-0


[Site "https://www.chess.com"]